Workbook

Sheet 021
A6: AUTORIDAD PARA EL MANEJO SUSTENTABLE DE LA CUENCA Y DEL LAGO DE AMATITLÁN NOMINA DE SUELDOS PERSONAL CONTRATADO BAJO EL RENGLÓN 021 "PERSONAL SUPERNUMERARIO" CORRESPONDIENTE AL MES DE ABRIL 2017
A10: No. | B10: CODIGO EMPLEADO | C10: PUESTO | D10: NIT | E10: NOMBRE | F10: Puesto Oficial | G10: Contrato | H10: Fecha de Ingreso | I10: Fecha de Ingreso | J10: Devengado Mensual | N10: Total Devengado Mensual | O10: Deducciones | S10: Total Deducciones | T10: Líquido | U10: Número de Cuenta
J11: Renglón 021 | K11: Renglón 026 | L11: Renglón 027 | O11: 118 | P11: 202 | Q11: 201 | R11: 203 | U11: CUENTA MONETARIA
J12: Sueldo Mensual | K12: Bono Profesional | L12: Bono Monetario | M12: Bono 66-2000 | O12: Montepío | P12: Fianza | Q12: IGSS | R12: ISR
L13: 26 | M13: 27 | O13: PROMEDIO POR 12 MESES | P13: 26 | Q13: 27
A14: 1 | B14: 990091785 | C14: 775401 | D14: 30968232 | E14: Silvia Gabriela Porras de León | F14: Encargada de Compras | G14: 01-2017-021-AMSA | H14: 02/01/2017 | I14: 2015-05-04 | J14: 8700 | K14: 0 | L14: 2000 | M14: 250 | N14: =SUM(J14:M14) -> 10950 | O14: =ROUND(SUM(J14:L14)*15%,2) -> 1605 | P14: =ROUND(SUM(J14:L14)*1.344%,2) -> 143.81 | Q14: =ROUND(SUM(J14:L14)*3%,2) -> 321 | R14: 249.99 | S14: =SUM(O14:R14) -> 2319.8 | T14: =+N14-S14 -> 8630.2 | U14: 3216007805 | V14: 9901371921
A15: 2 | B15: 9901150282 | C15: 775402 | E15: Jonnathan René Pernillo Salazar | F15: Encargado de Presupuesto | G15: 10-2017-021-AMSA | H15: 14/02/2017 | I15: 2015-03-10 | J15: 8200 | K15: 0 | L15: 2000 | M15: 250 | N15: 10450 | O15: =ROUND(SUM(J15+K15+L15)*15%,2) -> 1530 | P15: 137.09 | Q15: 306 | R15: 194.34 | S15: 2167.43 | T15: 8282.57 | U15: 3099177364 | V15: 9901150282
A16: 3 | C16: 775406 | E16: Elena María Reyes Solares | F16: Encargada de Laboratorio | G16: 03-2017-021-AMSA | H16: 02/01/2017 | J16: 6500 | L16: 2000 | M16: 250 | N16: 8750 | O16: =ROUND(SUM(J16+K16+L16)*14%,2) -> 1190 | P16: 114.24 | Q16: 255 | R16: 164.27 | S16: 1723.51 | T16: 7026.49
A17: 4 | B17: 990091724 | C17: 775400 | D17: 46905030 | E17: Yeimy Daleicy Rodriguez González | F17: Encargada de Nomina | G17: 09-2017-021-AMSA | H17: 14/02/2017 | I17: 2015-04-13 | J17: 5300 | K17: 0 | L17: 2000 | M17: 250 | N17: 7550 | O17: =ROUND(SUM(J17:L17)*13%,2) -> 949 | P17: 98.11 | Q17: 219 | R17: 87.45 | S17: 1353.56 | T17: 6196.44
A18: 5 | B18: 9901116935 | C18: 775404 | D18: 1208204K | E18: Juan Carlos Ardón Cardona | F18: Encargado de Contabilidad | G18: 05-2017-021-AMSA | H18: 02/01/2017 | I18: 2015-05-04 | J18: 3500 | K18: 0 | L18: 1500 | M18: 250 | N18: 5250 | O18: =ROUND(SUM(J18:L18)*12%,2) -> 600 | P18: 67.2 | Q18: 150 | R18: 24.4 | S18: 841.6 | T18: 4408.4 | V18: 9901116935
A19: 6 | B19: 9901160910 | C19: 775403 | D19: 40316173 | E19: Yanira Rubet Santos López | F19: Encargada de Tesorería | G19: 06-2017-021-AMSA | H19: 02/01/2017 | I19: 2015-05-04 | J19: 3500 | K19: 0 | L19: 1500 | M19: 250 | N19: 5250 | O19: =ROUND(SUM(J19:L19)*12%,2) -> 600 | P19: 67.2 | Q19: 150 | R19: 24.4 | S19: 841.6 | T19: 4408.4 | U19: 3755004477 | V19: 9901160910
A20: 7 | B20: 9901227385 | C20: 781020 | D20: 26424169 | E20: Sibia de Jesús Debroy Franco | F20: Encargada de Bodega | G20: 07-2017-021-AMSA | H20: 02/01/2017 | I20: 2015-05-04 | J20: 3000 | K20: 0 | L20: 1500 | M20: 250 | N20: 4750 | O20: =ROUND(SUM(J20:L20)*12%,2) -> 540 | P20: 60.48 | Q20: 135 | R20: 0 | S20: 735.48 | T20: 4014.52 | U20: 3164068218 | V20: 9901227385
A21: 8 | B21: 9901349724 | C21: 775405 | E21: Claudia Maribel Duran Rosales | F21: Encargada de Inventarios | G21: 11-2017-021-AMSA | H21: 01/03/2017 | I21: 2015-04-06 | J21: 3000 | K21: 0 | L21: 1500 | M21: 250 | N21: 4750 | O21: =ROUND(SUM(J21:L21)*12%,2) -> 540 | P21: 60.48 | Q21: 135 | R21: 0 | S21: 735.48 | T21: 4014.52
G22: Totales | J22: =SUM(J14:J21) -> 41700 | K22: 0 | L22: 14000 | M22: 2000 | N22: 57700 | O22: 7554 | P22: 748.61 | Q22: 1671 | R22: 744.85 | S22: 10718.46 | T22: 46981.54
C31: Elaboró: | H31: Revisó: | O31: Vo.Bo.
E32: Yeimy Daleicy Rodriguez González | I32: Víctor Aníbal López Aquino | P32: Ing. Oscar Amed Juárez Sosa
E33: Encargada de Nómina | I33: Jefe Administrativo Financiero | P33: Director Ejecutivo
E34: AMSA | I34: AMSA | P34: AMSA
T36: 1/1

Sheet Prestaciones 021
A2: NÓMINA ADICIONAL PARA PAGO DE PRESTACIONES
A3: RENGLÓN 021 "PERSONAL SUPERNUMERARIO"
A8: PAGO DE PRESTACIONES
A9: AGUINALDO, BONO VACACIONAL Y BONO 14
A10: No. | B10: Empleado | C10: Puesto | E10: Contrato | F10: Fecha de Ingreso | Q10: Días Laborados en el Año | S10: RENGLÓN 021 | T10: RENGLÓN 027 | V10: Total Devengado Mensual | W10: Renglón 071 | X10: Renglón 073 | Y10: Renglón 072 | AA10: Líquido
S12: Sueldo Mensual | T12: Bono Monetario | U12: Bono 66-2000 | W12: Aguinaldo | X12: Bono Vacacional | Y12: Salarios Devengados | Z12: Bono 14
A14: 1 | B14: Brian Antonio Archila Koppler | C14: Encargado de Inventarios | E14: 08-2017-021-AMSA | F14: 2017-01-01 | I14: =(200/365)*(26+31+30+31+30+31+31+30+31+30+31) -> 181.9178082 | J14: =#REF!+I14 ->  | Q14: 58 | S14: 3000 | T14: 1500 | U14: 250 | V14: =SUM(S14:U14) -> 4750 | W14: =4500*58/365 -> 715.0684932 | X14: =200*58/365 -> 31.78082192 | Y14: =(4500*1)+(4500/31*30) -> 8854.83871 | Z14: =Y14/12 -> 737.9032258 | AA14: =W14+X14+Z14 -> 1484.752541
E15: Totales | S15: =SUM(S14:S14) -> 3000 | T15: 1500 | U15: 250 | V15: 4750 | W15: =SUM(W14) -> 715.0684932 | X15: =SUM(X14) -> 31.78082192 | Y15: =SUM(Y14) -> 8854.83871 | Z15: =SUM(Z14) -> 737.9032258 | AA15: =SUM(AA14:AA14) -> 1484.752541
G16: =SUM(G15:G15) -> 0 | H16: =SUM(#REF!) ->  | I16: =SUM(I14:I15) -> 181.9178082 | J16: =SUM(J14:J15) -> 
A17: Al señor Brian Antonio Archila Koppler se le esta efectuando el pago de prestaciones laborales hasta el día 28 de febrero de 2017, según Acuerdo número RH-047-2016 de fecha 31 de octubre de 2016.
A29: Elaboró | E29: Revisó: | W29: Vo.Bo.
B30: Yeimy Daleicy Rodriguez González | F30: Víctor Aníbal López Aquino | X30: Ing. Oscar Amed Juárez Sosa
B31: Encargada de Nómina | F31: Jefe Administrativo Financiero | X31: Director Ejecutivo
B32: AMSA | F32: AMSA | X32: AMSA
AA38: 1/1

Sheet 011 y 022
A2: AUTORIDAD PARA EL MANEJO SUSTENTABLE DE LA CUENCA Y DEL LAGO DE AMATITLÁN NÓMINA DE SUELDOS CORRESPONDIENTES AL MES DE MAYO DE 2017
A4: RENGLÓN 011 PERSONAL PERMANENTE
A5: No. | B5: Renglón | C5: ÁREA | D5: Puesto Nominal | E5: Puesto Funcional | F5: Código Puesto | G5: CÓDIGO DE EMPLEADO | H5: PARTIDA INDIVIDUAL | I5: UBICACIÓN | J5: NOMBRE | L5: Acuerdo | M5: Fecha de Ingreso | N5: NIT | O5: IGSS | Q5: CÉDULA | R5: EXTENDIDA EN | S5: FECHA DE NACIMIENTO | T5: DIRECCIÓN | U5: TELÉFONO | V5: CORREO ELECTRÓNICO | W5: ESTADO CIVIL | X5: PROFESIÓN | Y5: OTROS ESTUDIOS | Z5: COLEGIADO ACTIVO | AA5: CUENTA BANCARIA | AB5: Devengado Mensual | AF5: Total Devengado Mensual | AG5: Deducciones | AN5: Total Deducciones | AO5: Líquido
AB6: Renglón 011 | AC6: Renglón 014 | AD6: Renglón 015 | AE6: Renglón 063 | AG6: 118 | AH6: 202 | AI6: 201 | AJ6: 203 | AK6: 211 | AL6: 102 | AM6: 120
AB7: Sueldo Mensual | AC7: Bono Profesional | AD7: Bono 66-2000 | AE7: Gastos de Represent. | AG7: Montepío | AH7: Fianza | AI7: IGSS | AJ7: ISR | AK7: DESC. | AL7: Amort BANTRAB | AM7: Decreto 81-70
AD8: 27 | AG8: PROMEDIO POR 12 MESES | AH8: 26 | AI8: 27 | AK8: JUDICIAL
A9: 1 | B9: 011 | C9: 990074989 | D9: Director Ejecutivo | E9: Director Ejecutivo | F9: 55272 | G9: 990074989 | H9: 00001 | I9: Dirección y Coordinación | J9: Oscar Amed Juárez Sosa | L9: 37 | M9: 2016-02-02 | N9: 444872-3 | O9: 160312179 | Q9: N-14 23657 | R9: Joyabaj, Quiche | S9: 1960-12-22 | T9: Lote 23 manzana D sector 3 Prados de Villa Hermosa, zona 7 san miguel Petapa | V9: edvinramos2000@yahoo.es | W9: casado | X9: Ingeniero Agrónomo | Z9: 2258 | AA9: 3031032222 | AB9: =17500 -> 17500 | AC9: 375 | AD9: 250 | AE9: 12000 | AF9: =SUM(AB9:AE9) -> 30125 | AG9: =ROUND(SUM(AB9:AC9)*15%,2) -> 2681.25 | AH9: =ROUND(SUM(AB9+AC9)*1.344%,2) -> 240.24 | AI9: =ROUND(SUM(AB9+AC9)*3%,2) -> 536.25 | AJ9: 545.38 | AK9: 3575 | AN9: =SUM(AG9:AL9) -> 7578.12 | AO9: =+AF9-AN9 -> 22546.88 | AP9: 990074989
L10: Total 011 | AB10: =SUM(AB9) -> 17500 | AC10: 375 | AD10: 250 | AE10: 12000 | AF10: 30125 | AG10: =SUM(AG9) -> 2681.25 | AH10: 240.24 | AI10: 536.25 | AJ10: 545.38 | AK10: =SUM(AK9) -> 3575 | AL10: 0 | AM10: 0 | AN10: 7578.12 | AO10: =SUM(AO9) -> 22546.88
A12: RENGLÓN 022 PERSONAL POR CONTRATO
A13: No. | B13: Renglón | C13: ÁREA | D13: Puesto Nominal | E13: Puesto Funcional | F13: Código Puesto | G13: CÓDIGO DE EMPLEADO | H13: PARTIDA INDIVIDUAL | I13: UBICACIÓN | J13: NOMBRE | L13: Contrato | M13: Fecha de Ingreso | N13: NIT | O13: IGSS | Q13: CÉDULA | R13: EXTENDIDA EN | S13: FECHA DE NACIMIENTO | T13: DIRECCIÓN | U13: TELÉFONO | V13: CORREO ELECTRÓNICO | W13: ESTADO CIVIL | X13: PROFESIÓN | Y13: OTROS ESTUDIOS | Z13: COLEGIADO ACTIVO | AA13: CUENTA BANCARIA | AB13: Devengado Mensual | AF13: TOTAL DEVENGADO MENSUAL | AG13: Deducciones | AN13: Total Deducciones | AO13: Líquido
AB14: Renglón 022 | AC14: Renglón 026 | AD14: Renglón 027 | AE14: Renglón 063 | AG14: 118 | AH14: 202 | AI14: 201 | AJ14: 203 | AK14: 211 | AL14: 102 | AM14: 120
P15: DPI | AB15: Sueldo Mensual | AC15: Bono Profesional | AD15: Bono 66-2000 | AE15: Gastos de Represent. | AG15: Montepío | AH15: Fianza | AI15: IGSS | AJ15: ISR | AK15: DESC. | AL15: Amort BANTRAB | AM15: Decreto 81-70
AD16: 27 | AG16: PROMEDIO POR 12 MESES | AH16: 26 | AK16: JUDICIAL
A17: 1 | B17: 022 | D17: Subdirector Ejecutivo II | E17: Auditor Interno | F17: 308379 | J17: Oscar Leopoldo Ovando Hernández | L17: 03-2015-022-AMSA | M17: 2015-03-23 | AB17: 10000 | AC17: 375 | AD17: 250 | AE17: 0 | AF17: =ROUND(SUM(AB17:AE17),2) -> 10625 | AG17: =ROUND(SUM(AB17:AC17)*15%,2) -> 1556.25 | AH17: =ROUND(SUM(AB17+AC17)*1.344%,2) -> 139.44 | AI17: =ROUND(SUM(AB17+AC17)*3%,2) -> 311.25 | AJ17: 237.88 | AN17: =SUM(AG17:AM17) -> 2244.82 | AO17: =+AF17-AN17 -> 8380.18 | AP17: 9901350757
A18: 2 | B18: 022 | C18: A | D18: Director Ejecutivo II | E18: Jefe Administrativo Financiero | F18: 351675 | G18: 990097519 | H18: 00011 | I18: División Financiera | J18: Víctor Aníbal López Aquino | L18: 01-2016-022-AMSA | M18: 2016-02-19 | N18: 2017446-2 | O18: 272086356 | Q18: A-1 849029 | R18: Guatemala, Guatemala | S18: 1972-05-25 | T18: 12 calle 9-97 zona 7 de Mixco | U18: 5405-4377 | W18: casada | X18: ='[1]021'!$S$21 -> Licenciatura en Administracion de Empresas | AB18: 12000 | AC18: 0 | AD18: 250 | AE18: 0 | AF18: =ROUND(SUM(AB18:AE18),2) -> 12250 | AG18: 1800 | AH18: =ROUND(SUM(AB18+AC18)*1.344%,2) -> 161.28 | AI18: =ROUND(SUM(AB18+AC18)*3%,2) -> 360 | AJ18: 304.5 | AL18: 3107.34 | AN18: 5733.12 | AO18: 6516.88 | AP18: 990038244
A19: 3 | B19: 022 | D19: Director Ejecutivo III | E19: Jefe Ordenamiento Territorial | F19: 351670 | J19: Víctor René Mazariegos Ortiz | L19: 02-2016-022-AMSA | M19: 2016-02-19 | AB19: 13500 | AC19: 375 | AD19: 250 | AE19: 0 | AF19: =ROUND(SUM(AB19:AE19),2) -> 14125 | AG19: 2081.25 | AH19: 186.48 | AI19: =ROUND(SUM(AB19+AC19)*3%,2) -> 416.25 | AJ19: 381.38 | AN19: 3065.36 | AO19: 11059.64 | AP19: 9901370183
A20: 4 | B20: 022 | D20: Director Ejecutivo II | E20: Jefa Asesoría Jurídica | F20: 401225 | J20: Margarita Dulce María Maldonado Hernández | L20: 03-2016-022-AMSA | M20: 2016-02-19 | AB20: 12000 | AC20: 375 | AD20: 250 | AE20: 0 | AF20: =ROUND(SUM(AB20:AE20),2) -> 12625 | AG20: 1856.25 | AH20: 166.32 | AI20: =ROUND(SUM(AB20+AC20)*3%,2) -> 371.25 | AJ20: 319.88 | AN20: 2713.7 | AO20: 9911.3 | AP20: 9901370188
A21: 5 | B21: 022 | D21: Director Ejecutivo II | E21: Jefe Desechos Sólidos | F21: 351677 | J21: Edgar Eduardo Pérez Cabrera | L21: 04-2016-022-AMSA | M21: 2016-03-10 | AB21: 12000 | AC21: 375 | AD21: 250 | AE21: 0 | AF21: 12625 | AG21: 1856.25 | AH21: 166.32 | AI21: 371.25 | AJ21: 319.88 | AN21: 2713.7 | AO21: 9911.3 | AP21: 9901054715
A22: 6 | B22: 022 | D22: Director Ejecutivo II | E22: Jefe Forestal | F22: 352692 | J22: Hugo Ronaldo Gutiérrez Ramírez | L22: 03-2017-022-AMSA | M22: 2017-03-01 | AB22: 12000 | AC22: 375 | AD22: 250 | AE22: 0 | AF22: 12625 | AG22: 1856.25 | AH22: 166.32 | AI22: 371.25 | AJ22: 261.13 | AN22: 2654.95 | AO22: 9970.05 | AP22: 9901373798
A23: 7 | B23: 022 | D23: Director Ejecutivo II | E23: Jefe Control Ambiental | F23: 351673 | J23: Manuel Francisco Cano Alfaro | L23: 06-2016-022-AMSA | M23: 2016-03-10 | AB23: 12000 | AC23: 375 | AD23: 250 | AE23: 0 | AF23: 12625 | AG23: 1856.25 | AH23: 166.32 | AI23: 371.25 | AJ23: 319.88 | AN23: 2713.7 | AO23: 9911.3 | AP23: 9901052694
A24: 8 | B24: 022 | D24: Director Ejecutivo II | E24: Jefa de Relaciones Interinstitucionales | F24: 351672 | J24: Maria Alejandra Guzman García | L24: 02-2017-022-AMSA | M24: 2017-02-14 | AB24: 12000 | AC24: 0 | AD24: 250 | AE24: 0 | AF24: 12250 | AG24: 1800 | AH24: 161.28 | AI24: =ROUND(SUM(AB24+AC24)*3%,2) -> 360 | AJ24: 265.02 | AN24: 2586.3 | AO24: 9663.7 | AP24: 990054468
A25: 9 | B25: 022 | D25: Subdirector Ejecutivo III | E25: Jefa de Educación Ambiental | F25: 351674 | J25: Maria Alejandra Punti Martínez | L25: 08-2016-022-AMSA | M25: 2016-04-04 | AB25: 11300 | AC25: 0 | AD25: 250 | AE25: 0 | AF25: 11550 | AG25: 1695 | AH25: 151.87 | AI25: 339 | AJ25: 275.8 | AN25: 2461.67 | AO25: 9088.33 | AP25: 9901378098
A26: 10 | B26: 022 | D26: Director Ejecutivo II | E26: Jefe Desechos Liquidos | F26: 352693 | J26: Heber Amilcar Barrios De León | L26: 10-2016-022-AMSA | M26: 2016-06-13 | AB26: 12000 | AC26: 375 | AD26: 250 | AE26: 0 | AF26: =ROUND(SUM(AB26:AE26),2) -> 12625 | AG26: 1856.25 | AH26: 166.32 | AI26: 371.25 | AJ26: 319.88 | AN26: 2713.7 | AO26: 9911.3 | AP26: 9901100971
A27: 11 | B27: 022 | D27: Director Ejecutivo ll | E27: Jede de Evaluacion y Seguimiento | F27: 351678 | J27: Harold Alexander Cruz Juarez | L27: 01-2017-022-AMSA | M27: 2017-01-30 | AB27: 12000 | AC27: 375 | AD27: 250 | AE27: 0 | AF27: 12625 | AG27: 1856.25 | AH27: 166.32 | AI27: 371.25 | AJ27: 303.22 | AN27: 2697.04 | AO27: 9927.96
A28: 12 | B28: 022 | D28: Subdirector Ejecutivo II | E28: Subdirector Ejecutivo | F28: 308378 | J28: Mayra Carolina Tobar Zuleta | L28: 11-2016-022-AMSA Acuerdo 116 | M28: 2016-12-19 | AB28: 10000 | AC28: 375 | AD28: 250 | AE28: 8000 | AF28: 18625 | AG28: 1556.25 | AH28: 139.44 | AI28: 311.25 | AJ28: 237.88 | AN28: 2244.82 | AO28: 16380.18
L29: Total 022 | AB29: =SUM(AB17:AB28) -> 140800 | AC29: 3375 | AD29: 3000 | AE29: 8000 | AF29: 155175 | AG29: 21626.25 | AH29: 1937.71 | AI29: 4325.25 | AJ29: 3546.33 | AK29: 0 | AL29: 3107.34 | AM29: 0 | AN29: 34542.88 | AO29: 120632.12
L30: Total 011 y 022 | AB30: =+AB29+AB10 -> 158300 | AC30: =+AC29+AC10 -> 3750 | AD30: =+AD29+AD10 -> 3250 | AE30: =+AE29+AE10 -> 20000 | AF30: =SUM(AF29+AF10) -> 185300 | AG30: 24307.5 | AH30: 2177.95 | AI30: 4861.5 | AJ30: 4091.71 | AK30: 3575 | AL30: 3107.34 | AM30: 0 | AN30: 42121 | AO30: =AF30-AN30 -> 143179
B39: Elaboró: | K39: Revisó: | AF39: Vo.Bo.
D40: Yeimy Daleicy Rodriguez González | L40: Víctor Aníbal López Aquino | AG40: Ing. Oscar Amed Juárez Sosa
D41: Encargada de Nómina | L41: Jefe Administrativo Financiero | AG41: Director Ejecutivo
D42: AMSA | G42: AMSA | L42: AMSA | AG42: AMSA | AO42: 1/1

Sheet 031
B2: AUTORIDAD PARA EL MANEJO SUSTENTABLE DE LA CUENCA Y DEL LAGO DE AMATITLÁN
B3: NOMINA CORRESPONDIENTE AL MES DE MAYO 2017
B4: NÚMERO 7-2017
B5: RENGLÓN 031 "JORNALES"
D7: SOLICITUD DE PAGO | E7: =B4 -> NÚMERO 7-2017
B9: SUBPRODUCTO: DIRECCIÓN Y COORDINACIÓN 001-001-001
B10: 11130016-219-00-33-00-000-001-000-031-0115-11-0000-0000
B13: No. | C13: PUESTO | D13: Titulo Jornal Diario | E13: Ubicación | F13: Empleado | G13: Contrato | H13: Fecha de Ingreso | I13: Jornal | J13: Días | K13: Renglón 031 | L13: Renglón 033 | M13: Renglón 033 | N13: Total Devengado Mensual | O13: Deducciones | R13: Total Deducciones | S13: Liquido | T13: Número de Cuenta
O14: 201 | P14: 211 | Q14: 120
K15: Jornales | L15: Bono 66-2000 | M15: complemento específico por nivelación | O15: IGSS | P15: Retenciones Judiciales | Q15: Decreto 81-70
B16: 1 | C16: Encargada de Limpieza | D16: Constructor de Puentes | E16: Adiministrativo | F16: Gladis Mirtala Ramírez Sánchez | G16: 01-2017-031-AMSA | H16: 2008-01-02 | I16: 80.86 | J16: 31 | K16: =I16*J16 -> 2506.66 | L16: 250 | M16: =6.04*J16 -> 187.24 | N16: =SUM(K16:M16) -> 2943.9 | O16: =ROUND((K16+M16)*4.83%,2) -> 130.12 | P16: 0 | Q16: 0 | R16: =SUM(O16:Q16) -> 130.12 | S16: =+N16-R16 -> 2813.78 | T16: 3216012953
B17: 2 | D17: Constructor de Puentes | E17: Adiministrativo | F17: Vidal Cruz Martínez | G17: 02-2017-031-AMSA | H17: 2002-02-02 | I17: 80.86 | J17: 31 | K17: 2506.66 | L17: 250 | M17: 187.24 | N17: 2943.9 | O17: 130.12 | P17: 0 | Q17: 0 | R17: 130.12 | S17: 2813.78 | T17: 3216001970
B18: 3 | C18: Jardinero | D18: Constructor de Puentes | E18: Adiministrativo | F18: Victorina de Jesús Peralta Peralta | G18: 03-2017-031-AMSA | H18: 01/10/2014 | I18: 80.86 | J18: 31 | K18: 2506.66 | L18: 250 | M18: 187.24 | N18: 2943.9 | O18: 130.12 | P18: 0 | Q18: 0 | R18: 130.12 | S18: 2813.78 | T18: 3393002669
B19: 4 | D19: Constructor de Puentes | E19: Adiministrativo | F19: Sara Adelaida Quevedo Alcántara | G19: 04-2017-031-AMSA | H19: 03/12/2012 | I19: 80.86 | J19: 31 | K19: 2506.66 | L19: 250 | M19: 187.24 | N19: 2943.9 | O19: 130.12 | P19: 0 | Q19: 0 | R19: 130.12 | S19: 2813.78 | T19: 4322082859
B20: 5 | C20: Encargada de Limpieza | D20: Constructor de Puentes | E20: Adiministrativo | F20: Elida Etelvina Obando Hernandez | G20: 05-2017-031-AMSA | H20: 25/10/2013 | I20: 80.86 | J20: 31 | K20: 2506.66 | L20: 250 | M20: 187.24 | N20: 2943.9 | O20: 130.12 | P20: 0 | Q20: 0 | R20: 130.12 | S20: 2813.78 | T20: 4654012114
B21: 6 | C21: Encargada de Limpieza | D21: Constructor de Puentes | E21: Adiministrativo | F21: Yomara Ninett Escobar Calderón | G21: 06-2017-031-AMSA | H21: 03/10/2014 | I21: 80.86 | J21: 31 | K21: 2506.66 | L21: 250 | M21: 187.24 | N21: 2943.9 | O21: 130.12 | P21: 0 | R21: 130.12 | S21: 2813.78 | T21: 3164072096
B22: 7 | D22: Constructor de Puentes | E22: Adiministrativo | F22: Elmer Arám Chacón Portillo | G22: 07-2017-031-AMSA | H22: 2015-01-05 | I22: 80.86 | J22: 31 | K22: 2506.66 | L22: 250 | M22: 187.24 | N22: 2943.9 | O22: 130.12 | P22: 0 | Q22: 0 | R22: 130.12 | S22: 2813.78 | T22: 3298033742
B23: 8 | C23: Peon Vigilante | D23: Peon Vigilante V | E23: Humedal | F23: Estuardo Randolfo Gutierrez Cruz | G23: 65-2017-031-AMSA | H23: 2017-03-01 | I23: 75.64 | J23: 31 | K23: =I23*J23 -> 2344.84 | L23: 250 | M23: =11.26*J23 -> 349.06 | N23: =SUM(K23:M23) -> 2943.9 | O23: =ROUND((K23+M23)*4.83%,2) -> 130.12 | P23: 0 | Q23: 0 | R23: =SUM(O23:Q23) -> 130.12 | S23: =+N23-R23 -> 2813.78 | T23: 3607017078
B24: 9 | C24: Peon Vigilante | D24: Peon Vigilante V | E24: Humedal | F24: Biayner Soto Arana | G24: 66-2017-031-AMSA | H24: 2017-02-20 | I24: 75.64 | J24: 31 | K24: 2344.84 | L24: 250 | M24: =11.26*30 -> 337.8 | N24: 2932.64 | O24: 129.57 | P24: 0 | Q24: 0 | R24: 129.57 | S24: 2803.07 | T24: 3287038944
B25: 10 | C25: Peon Vigilante | D25: Peon Vigilante V | E25: La Cerra | F25: Werlington Jeffrey Robinzon Alvarado Hernandez | G25: 67-2017-031-AMSA | H25: 2017-02-20 | I25: 75.64 | J25: 31 | K25: 2344.84 | L25: 250 | M25: 337.8 | N25: 2932.64 | O25: 129.57 | P25: 0 | Q25: 0 | R25: 129.57 | S25: 2803.07 | T25: 3287038994
B26: 11 | C26: Peon Vigilante | D26: Peon Vigilante V | E26: La Cerra | F26: Hamilton Wilfredo Hernández Hernández | G26: 68-2017-031-AMSA | H26: 2017-02-20 | I26: 75.64 | J26: 31 | K26: 2344.84 | L26: 250 | M26: 337.8 | N26: 2932.64 | O26: 129.57 | P26: 0 | Q26: 0 | R26: 129.57 | S26: 2803.07 | T26: 3287039080
B27: 12 | C27: Peon Vigilante | D27: Peon Vigilante V | E27: Acuatica | F27: Hugo Concepcion Escobar Veliz | G27: 70-2017-031-AMSA | H27: 2017-02-20 | I27: 75.64 | J27: 31 | K27: 2344.84 | L27: 250 | M27: 337.8 | N27: 2932.64 | O27: 129.57 | P27: 0 | Q27: 0 | R27: 129.57 | S27: 2803.07 | T27: 3759033361
B28: 13 | C28: Peon Vigilante | D28: Peon Vigilante V | E28: Km 22 | F28: Nazario Hernández Osorio | G28: 71-2017-031-AMSA | H28: 2017-02-20 | I28: 75.64 | J28: 31 | K28: 2344.84 | L28: 250 | M28: 337.8 | N28: 2932.64 | O28: 129.57 | P28: 0 | Q28: 0 | R28: 129.57 | S28: 2803.07 | T28: 3364085352
B29: 14 | C29: Peon Vigilante | D29: Peon Vigilante V | E29: Km 22 | F29: Sebastián Alfredo Morales Morales | G29: 72-2017-031-AMSA | H29: 2017-02-20 | I29: 75.64 | J29: 31 | K29: 2344.84 | L29: 250 | M29: 337.8 | N29: 2932.64 | O29: 129.57 | P29: 0 | Q29: 0 | R29: 129.57 | S29: 2803.07 | T29: 3164078022
B30: 15 | C30: Peon Vigilante | D30: Peon Vigilante V | E30: Km 22 | F30: Candido Samayoa y Samayoa | G30: 73-2017-031-AMSA | H30: 2017-02-20 | I30: 75.64 | J30: 31 | K30: 2344.84 | L30: 250 | M30: 337.8 | N30: 2932.64 | O30: 129.57 | P30: 0 | Q30: 0 | R30: 129.57 | S30: 2803.07 | T30: 3532020817
B31: 16 | C31: Peon Vigilante | D31: Peon Vigilante V | E31: Km 22 | F31: Axel Augusto Lopez De León | G31: 73-2017-031-AMSA | H31: 2017-02-20 | I31: 75.64 | J31: 31 | K31: 2344.84 | L31: 250 | M31: 337.8 | N31: 2932.64 | O31: 129.57 | P31: 0 | Q31: 0 | R31: 129.57 | S31: 2803.07 | T31: 3424051646
B32: 17 | C32: Peon Vigilante | D32: Peon Vigilante V | E32: Km 22 | F32: Rolando Gonzalez Tahuico | G32: 75-2017-031-AMSA | H32: 2017-02-20 | I32: 75.64 | J32: 31 | K32: 2344.84 | L32: 250 | M32: 337.8 | N32: 2932.64 | O32: 129.57 | P32: 0 | Q32: 0 | R32: 129.57 | S32: 2803.07 | T32: 3661018168
B33: 18 | C33: Peon Vigilante | D33: Peon Vigilante V | E33: Km 22 | F33: Jose Urias Muñoz | G33: 75-2017-031-AMSA | H33: 2017-02-20 | I33: 75.64 | J33: 31 | K33: 2344.84 | L33: 250 | M33: 337.8 | N33: 2932.64 | O33: 129.57 | P33: 0 | Q33: 0 | R33: 129.57 | S33: 2803.07 | T33: 3137127054
B34: 19 | C34: Peon Vigilante | D34: Peon Vigilante V | E34: La Cerra | F34: Manolo Gabriel Godoy | G34: 77-2017-031-AMSA | H34: 2017-02-20 | I34: 75.64 | J34: 31 | K34: 2344.84 | L34: 250 | M34: 337.8 | N34: 2932.64 | O34: 129.57 | P34: 0 | Q34: 0 | R34: 129.57 | S34: 2803.07 | T34: 4393006466
B35: 20 | C35: Peon Vigilante | D35: Peon Vigilante V | E35: La Cerra | F35: Henry Alejandro Ventura Hernandez | G35: 78-2017-031-AMSA | H35: 2017-02-20 | I35: 75.64 | J35: 31 | K35: 2344.84 | L35: 250 | M35: 337.8 | N35: 2932.64 | O35: 129.57 | P35: 0 | Q35: 0 | R35: 129.57 | S35: 2803.07 | T35: 3287039109
B36: 21 | C36: Peon Vigilante | D36: Peon Vigilante V | E36: Humedal | F36: Jorge Adán Arizandieta García | G36: 79-2017-031-AMSA | H36: 2017-02-20 | I36: 75.64 | J36: 31 | K36: 2344.84 | L36: 250 | M36: 337.8 | N36: 2932.64 | O36: 129.57 | P36: 0 | Q36: 0 | R36: 129.57 | S36: 2803.07 | T36: 3287038912
B37: 22 | C37: Peon Vigilante | D37: Peon Vigilante V | E37: Humedal | F37: Ricardo Arizandieta García | G37: 80-2017-031-AMSA | H37: 2017-02-20 | I37: 75.64 | J37: 31 | K37: 2344.84 | L37: 250 | M37: 337.8 | N37: 2932.64 | O37: 129.57 | P37: 0 | Q37: 0 | R37: 129.57 | S37: 2803.07 | T37: 3287038926
B38: 23 | C38: Peon Vigilante | D38: Peon Vigilante V | E38: Km 22 | F38: Rutilia Gomez Lopez | G38: 81-2017-031-AMSA | H38: 2017-05-16 | I38: 75.64 | J38: 16 | K38: 1210.24 | L38: 250 | M38: 337.8 | N38: 1798.04 | O38: 74.77 | P38: 0 | Q38: 0 | R38: 74.77 | S38: 1723.27 | T38: 3153059040
G39: Totales | K39: =SUM(K16:K38) -> 53929.46 | L39: 5750 | M39: 6726.74 | N39: 66406.2 | O39: 2929.71 | P39: 0 | Q39: 0 | R39: 2929.71 | S39: 63476.49
B43: SUBPRODUCTO: CONTROL Y MANEJO DE LOS DESECHOS SÓLIDOS EN LA CUENCA DEL LAGO DE AMATITLÁN 001-002-0005
B44: 11130016-219-00-33-00-000-002-000-031-0115-11-0000-0000
B47: No. | C47: PUESTO | D47: Titulo Jornal Diario | E47: Ubicación | F47: Empleado | G47: Contrato | H47: Fecha de Ingreso | I47: Jornal | J47: Días | K47: Renglón 031 | L47: Renglón 033 | M47: Renglón 033 | N47: Total Devengado Mensual | O47: Deducciones | R47: Total Deducciones | S47: Liquido | T47: Número de Cuenta | V47: 0010 / 692 - UC RELLENO SANITARIO (004)
O48: 201 | P48: 211 | Q48: 120
K49: Jornales | L49: Bono 66-2000 | M49: complemento específico por nivelación | O49: IGSS | P49: Retenciones Judiciales | Q49: Decreto 81-70
B50: 1 | C50: Peón de Campo | D50: Constructor de Puentes | E50: Desechos Sólidos | F50: Maynor de Jesús De León Dionicio | G50: 08-2017-031-AMSA | H50: 05/01/2015 | I50: 80.86 | J50: 31 | K50: =I50*J50 -> 2506.66 | L50: 250 | M50: =6.04*J50 -> 187.24 | N50: =SUM(K50:M50) -> 2943.9 | O50: =ROUND((K50+M50)*4.83%,2) -> 130.12 | P50: 0 | Q50: 0 | R50: =SUM(O50:Q50) -> 130.12 | S50: =+N50-R50 -> 2813.78 | T50: 3216010363
B51: 2 | D51: Constructor de Puentes | E51: Desechos Sólidos | F51: Cecilio Antonio Vásquez Soto | G51: 09-2017-031-AMSA | H51: 2012-10-02 | I51: 80.86 | J51: 31 | K51: =I51*J51 -> 2506.66 | L51: 250 | M51: =6.04*J51 -> 187.24 | N51: =SUM(K51:M51) -> 2943.9 | O51: =ROUND((K51+M51)*4.83%,2) -> 130.12 | P51: 0 | Q51: 0 | R51: =SUM(O51:Q51) -> 130.12 | S51: =+N51-R51 -> 2813.78 | T51: 3532007563
B52: 3 | D52: Constructor de Puentes | E52: Desechos Sólidos | F52: Roberto Romero Peralta | G52: 10-2017-031-AMSA | H52: 17/02/2015 | I52: 80.86 | J52: 31 | K52: =I52*J52 -> 2506.66 | L52: 250 | M52: =6.04*J52 -> 187.24 | N52: =SUM(K52:M52) -> 2943.9 | O52: =ROUND((K52+M52)*4.83%,2) -> 130.12 | P52: 0 | Q52: 0 | R52: =SUM(O52:Q52) -> 130.12 | S52: =+N52-R52 -> 2813.78 | T52: 3164072927
B53: 4 | D53: Constructor de Puentes | E53: Desechos Sólidos | F53: Rafael de Jesús Perea Peralta | G53: 11-2017-031-AMSA | H53: 01/01/2016 | I53: 80.86 | J53: 31 | K53: =I53*J53 -> 2506.66 | L53: 250 | M53: =6.04*J53 -> 187.24 | N53: =SUM(K53:M53) -> 2943.9 | O53: =ROUND((K53+M53)*4.83%,2) -> 130.12 | P53: 0 | Q53: 0 | R53: =SUM(O53:Q53) -> 130.12 | S53: =+N53-R53 -> 2813.78 | T53: 3216008208
G54: Totales | K54: =SUM(K50:K53) -> 10026.64 | L54: =SUM(L50:L53) -> 1000 | M54: 748.96 | N54: =SUM(N50:N53) -> 11775.6 | O54: 520.48 | P54: 0 | Q54: 0 | R54: 520.48 | S54: 11255.12
B62: SUBPRODUCTO: TRATAMIENTO DE LAS AGUAS RESIDUALES A TRÁVES DE LAS PLANTAS DE TRATAMIENTO A CARGO DE LA INSTITUCIÓN 001-002-0001
B63: 11130016-219-00-33-00-000-002-000-031-0115-11-0000-0000
B66: No. | C66: PUESTO | D66: Titulo Jornal Diario | E66: Ubicación | F66: Empleado | G66: Contrato | H66: Fecha de Ingreso | I66: Jornal | J66: Días | K66: Renglón 031 | L66: Renglón 033 | M66: Renglón 033 | N66: Total Devengado Mensual | O66: Deducciones | R66: Total Deducciones | S66: Liquido | T66: Número de Cuenta | V66: 0009 / 691 - UC PLANTAS DE TRATAMIENTO (003)
O67: 201 | P67: 211 | Q67: 120
K68: Jornales | L68: Bono 66-2000 | M68: complemento específico por nivelación | O68: IGSS | P68: Retenciones Judiciales | Q68: Decreto 81-70
B69: 1 | C69: Operadores PTAR | D69: Constructor de Puentes | E69: Desechos Líquidos | F69: José Filiberto Domingo Domingo | G69: 12-2017-031-AMSA | H69: 2006-01-02 | I69: 80.86 | J69: 31 | K69: =I69*J69 -> 2506.66 | L69: 250 | M69: =6.04*J69 -> 187.24 | N69: =SUM(K69:M69) -> 2943.9 | O69: =ROUND((K69+M69)*4.83%,2) -> 130.12 | P69: 0 | Q69: 0 | R69: =SUM(O69:Q69) -> 130.12 | S69: =+N69-R69 -> 2813.78 | T69: 4216005864
B70: 2 | C70: Operadores PTAR | D70: Constructor de Puentes | E70: Desechos Líquidos | F70: Agustín López López | G70: 13-2017-031-AMSA | H70: 2007-01-02 | I70: 80.86 | J70: 31 | K70: 2506.66 | L70: 250 | M70: =6.04*J70 -> 187.24 | N70: 2943.9 | O70: 130.12 | P70: 0 | Q70: 0 | R70: 130.12 | S70: 2813.78 | T70: 3216004367
B71: 3 | C71: Operadores PTAR | D71: Constructor de Puentes | E71: Desechos Líquidos | F71: Abel Barillas Grajeda | G71: 14-2017-031-AMSA | H71: 2003-04-01 | I71: 0 | J71: 31 | K71: 0 | L71: 250 | M71: 0 | N71: 250 | O71: 0 | P71: 0 | Q71: 0 | R71: 0 | S71: 250 | T71: 3216001443
B72: 4 | C72: Operadores PTAR | D72: Constructor de Puentes | E72: Desechos Líquidos | F72: Nelson Orlando Quiñonez Yohol | G72: 15-2017-031-AMSA | H72: 2005-02-01 | I72: 80.86 | J72: 31 | K72: 2506.66 | L72: 250 | M72: =6.04*J72 -> 187.24 | N72: 2943.9 | O72: 130.12 | P72: 0 | Q72: 0 | R72: 130.12 | S72: 2813.78 | T72: 3216001475
B73: 5 | C73: Operadores PTAR | D73: Constructor de Puentes | E73: Desechos Líquidos | F73: Herculano Colmenar Estrada | G73: 16-2017-031-AMSA | H73: 2003-03-01 | I73: 80.86 | J73: 31 | K73: 2506.66 | L73: 250 | M73: 187.24 | N73: 2943.9 | O73: 130.12 | P73: 0 | Q73: 0 | R73: 130.12 | S73: 2813.78 | T73: 3216001439
B74: 6 | C74: Operadores PTAR | D74: Constructor de Puentes | E74: Desechos Líquidos | F74: Guillermo Apolonio Chuc Mejía | G74: 17-2017-031-AMSA | H74: 2003-05-01 | I74: 80.86 | J74: 31 | K74: 2506.66 | L74: 250 | M74: 187.24 | N74: 2943.9 | O74: 130.12 | P74: 0 | Q74: 0 | R74: 130.12 | S74: 2813.78 | T74: 3216001493
B75: 7 | C75: Operadores PTAR | D75: Constructor de Puentes | E75: Desechos Líquidos | F75: Marcelino Gómez Dávila | G75: 18-2017-031-AMSA | H75: 2003-03-01 | I75: 80.86 | J75: 31 | K75: 2506.66 | L75: 250 | M75: 187.24 | N75: 2943.9 | O75: 130.12 | P75: 0 | Q75: 0 | R75: 130.12 | S75: 2813.78 | T75: 4216002459
B76: 8 | C76: Peón de Campo | D76: Constructor de Puentes | E76: Desechos Líquidos | F76: Héctor William Martínez Cabrera | G76: 19-2017-031-AMSA | H76: 2007-01-02 | I76: 80.86 | J76: 31 | K76: 2506.66 | L76: 250 | M76: 187.24 | N76: 2943.9 | O76: 130.12 | P76: 0 | Q76: 0 | R76: 130.12 | S76: 2813.78 | T76: 3216004486
B77: 9 | D77: Constructor de Puentes | E77: Desechos Líquidos | F77: Calixto de Jesús Rodríguez Quintero | G77: 20-2017-031-AMSA | H77: 2016-01-01 | I77: 80.86 | J77: 31 | K77: 2506.66 | L77: 250 | M77: 187.24 | N77: 2943.9 | O77: 130.12 | P77: 0 | R77: 130.12 | S77: 2813.78 | T77: 3153050750
G78: Totales | K78: =SUM(K69:K77) -> 20053.28 | L78: =SUM(L69:L77) -> 2250 | M78: =SUM(M62:M77) -> 1497.92 | N78: =SUM(N69:N77) -> 23801.2 | O78: 1040.96 | P78: 0 | Q78: 0 | R78: 1040.96 | S78: 22760.24
B81: SUBPRODUCTO: VOLUMEN DE DESECHOS SÓLIDOS FLOTANTES Y PLANTAS ACUÁTICAS EXTRAÍDOS DEL LAGO DE AMATITLÁN 001-002-0002
B82: 11130016-219-00-33-00-000-002-000-031-0115-11-0000-0000
B84: No. | C84: PUESTO | D84: Titulo Jornal Diario | E84: Ubicación | F84: Empleado | G84: Contrato | H84: Fecha de Ingreso | I84: Jornal | J84: Días | K84: Renglón 031 | L84: Renglón 033 | M84: Renglón 033 | N84: Total Devengado Mensual | O84: Deducciones | R84: Total Deducciones | S84: Liquido | T84: Número de Cuenta | V84: 0006 / 628 - UC LIMPIEZA DEL LAGO (002)
O85: 201 | P85: 211 | Q85: 120
K86: Jornales | L86: Bono 66-2000 | M86: complemento específico por nivelación | O86: IGSS | P86: Retenciones Judiciales | Q86: Decreto 81-70
B87: 1 | C87: Peón de Campo | D87: Constructor de Puentes | E87: Estación Acuática | F87: Flavio Alí Alonso Gil | G87: 22-2017-031-AMSA | H87: 2002-01-02 | I87: 80.86 | J87: 31 | K87: =I87*J87 -> 2506.66 | L87: 250 | M87: =6.04*J87 -> 187.24 | N87: =SUM(K87:M87) -> 2943.9 | O87: =ROUND((K87+M87)*4.83%,2) -> 130.12 | P87: 0 | Q87: 0 | R87: =SUM(O87:Q87) -> 130.12 | S87: =+N87-R87 -> 2813.78 | T87: 3216001631
B88: 2 | C88: Operario de Maquinaria | D88: Constructor de Puentes | E88: Estación Acuática | F88: Gerver Oswaldo Suruy Estupe | G88: 23-2017-031-AMSA | H88: 2007-01-02 | I88: 80.86 | J88: 31 | K88: 2506.66 | L88: 250 | M88: 187.24 | N88: 2943.9 | O88: 130.12 | P88: 0 | Q88: 0 | R88: 130.12 | S88: 2813.78 | T88: 3216003318
B89: 3 | C89: Lanchero | D89: Constructor de Puentes | E89: Estación Acuática | F89: Andrés Payes Rodríguez | G89: 24-2017-031-AMSA | H89: 2002-01-02 | I89: 80.86 | J89: 31 | K89: 2506.66 | L89: 250 | M89: 187.24 | N89: 2943.9 | O89: 130.12 | P89: 800 | Q89: 0 | R89: 930.12 | S89: 2013.78 | T89: 3216001700
B90: 4 | C90: Peón de Campo | D90: Constructor de Puentes | E90: Estación Acuática | F90: Ignacio Seijas Sequen | G90: 25-2017-031-AMSA | H90: 2006-01-02 | I90: 80.86 | J90: 31 | K90: 2506.66 | L90: 250 | M90: 187.24 | N90: 2943.9 | O90: 130.12 | P90: 0 | Q90: 0 | R90: 130.12 | S90: 2813.78 | T90: 3234009071
B91: 5 | C91: Peón de Campo | D91: Constructor de Puentes | E91: Estación Acuática | F91: Mario Arturo Sigüenza | G91: 26-2017-031-AMSA | H91: 2003-08-01 | I91: 80.86 | J91: 31 | K91: 2506.66 | L91: 250 | M91: 187.24 | N91: 2943.9 | O91: 130.12 | P91: 0 | Q91: 0 | R91: 130.12 | S91: 2813.78 | T91: 3216001801
B92: 6 | C92: Peón de Campo | D92: Constructor de Puentes | E92: Estación Acuática | F92: Carlos Fernando Tello Valdez | G92: 27-2017-031-AMSA | H92: 2002-01-02 | I92: 80.86 | J92: 31 | K92: 2506.66 | L92: 250 | M92: 187.24 | N92: 2943.9 | O92: 130.12 | P92: 0 | Q92: 0 | R92: 130.12 | S92: 2813.78 | T92: 4216002514
B93: 7 | C93: Encargado de Oxigenadores | D93: Constructor de Puentes | E93: Estación Acuática | F93: Jesús Antonio Montúfar Mazariegos | G93: 28-2017-031-AMSA | H93: 2007-05-02 | I93: 80.86 | J93: 31 | K93: 2506.66 | L93: 250 | M93: 187.24 | N93: 2943.9 | O93: 130.12 | P93: 0 | Q93: 0 | R93: 130.12 | S93: 2813.78 | T93: 3164031580
B94: 8 | C94: Peón de Campo | D94: Constructor de Puentes | E94: Estación Acuática | F94: Carlos Humberto Gatica González | G94: 29-2017-031-AMSA | H94: 2007-05-16 | I94: 80.86 | J94: 31 | K94: 2506.66 | L94: 250 | M94: 187.24 | N94: 2943.9 | O94: 130.12 | P94: 0 | Q94: 0 | R94: 130.12 | S94: 2813.78 | T94: 4216002528
B95: 9 | C95: Peón de Campo | D95: Constructor de Puentes | E95: Estación Acuática | F95: Nery Armando Castañeda Avilés | G95: 30-2017-031-AMSA | H95: 2008-06-09 | I95: 80.86 | J95: 31 | K95: 2506.66 | L95: 250 | M95: 187.24 | N95: 2943.9 | O95: 130.12 | P95: 0 | Q95: 0 | R95: 130.12 | S95: 2813.78 | T95: 3164034252
B96: 10 | C96: Peón de Campo | D96: Constructor de Puentes | E96: Estación Acuática | F96: Yury Geovani Guzmán Avilés | G96: 31-2017-031-AMSA | H96: 2010-01-02 | I96: 80.86 | J96: 31 | K96: 2506.66 | L96: 250 | M96: 187.24 | N96: 2943.9 | O96: 130.12 | P96: 0 | Q96: 0 | R96: 130.12 | S96: 2813.78 | T96: 3216001645
B97: 11 | D97: Constructor de Puentes | E97: Estación Acuática | F97: Cosmen Vitalino Obando Montenegro | G97: 32-2017-031-AMSA | H97: 2007-01-02 | I97: 80.86 | J97: 31 | K97: 2506.66 | L97: 250 | M97: 187.24 | N97: 2943.9 | O97: 130.12 | P97: 0 | R97: 130.12 | S97: 2813.78 | T97: 3216004490
B98: 12 | D98: Constructor de Puentes | E98: Estación Acuática | F98: Juan Antonio Roque Dionisio | G98: 33-2017-031-AMSA | H98: 2007-01-02 | I98: 80.86 | J98: 31 | K98: 2506.66 | L98: 250 | M98: 187.24 | N98: 2943.9 | O98: 130.12 | P98: 0 | R98: 130.12 | S98: 2813.78 | T98: 3216004353
B99: 13 | D99: Constructor de Puentes | E99: Estación Acuática | F99: Marlon Geovani Arizandieta Arroyo | G99: 34-2017-031-AMSA | H99: 2013-02-01 | I99: 80.86 | J99: 31 | K99: 2506.66 | L99: 250 | M99: 187.24 | N99: 2943.9 | O99: 130.12 | P99: 0 | R99: 130.12 | S99: 2813.78 | T99: 3216001627
B100: 14 | D100: Constructor de Puentes | E100: Estación Acuática | F100: Erik Leonel Quixaj Ortiz | G100: 35-2017-031-AMSA | H100: 2017-01-01 | I100: 80.86 | J100: 31 | K100: 2506.66 | L100: 250 | M100: 187.24 | N100: 2943.9 | O100: 130.12 | P100: 0 | R100: 130.12 | S100: 2813.78 | T100: 3164003073
B101: 15 | D101: Constructor de Puentes | E101: Estación Acuática | F101: Reyna Elizabeth Toc Choz | G101: 36-2017-031-AMSA | H101: 2014-07-14 | I101: 80.86 | J101: 31 | K101: 2506.66 | L101: 250 | M101: 187.24 | N101: 2943.9 | O101: 130.12 | P101: 0 | R101: 130.12 | S101: 2813.78 | T101: 3247011971
B102: 16 | D102: Constructor de Puentes | E102: Estación Acuática | F102: José Luis Arizandieta Cabrera | G102: 37-2017-031-AMSA | H102: 2016-01-01 | I102: 80.86 | J102: 31 | K102: 2506.66 | L102: 250 | M102: 187.24 | N102: 2943.9 | O102: 130.12 | P102: 0 | R102: 130.12 | S102: 2813.78 | T102: 3229010497
G103: Totales | K103: =SUM(K87:K102) -> 40106.56 | L103: =SUM(L87:L102) -> 4000 | M103: =SUM(M84:M102) -> 2995.84 | N103: =SUM(N87:N102) -> 47102.4 | O103: =SUM(O87:O102) -> 2081.92 | P103: =SUM(P87:P102) -> 800 | Q103: 0 | R103: 2881.92 | S103: 44220.48
B117: SUBPRODUCTO: REFORESTACIÓN Y MANTENIMIENTO DE ÁREAS EN LA CUENCA DEL LAGO DE AMATITLÁN 001-008-0008
B118: 11130016-219-00-33-00-000-005-000-031-0115-11-0000-0000
B120: No. | C120: PUESTO | D120: Titulo Jornal Diario | E120: Ubicación | F120: Empleado | G120: Contrato | H120: Fecha de Ingreso | I120: Jornal | J120: Días | K120: Renglón 031 | L120: Renglón 033 | M120: Renglón 033 | N120: Total Devengado Mensual | O120: Deducciones | R120: Total Deducciones | S120: Liquido | T120: Número de Cuenta | W120: 0005 / 346 - UC REFORESTACIÓN (008)
O121: 201 | P121: 211 | Q121: 120
K122: Jornales | L122: Bono 66-2000 | M122: complemento específico por nivelación | O122: IGSS | P122: Retenciones Judiciales | Q122: Decreto 81-70
B123: 1 | D123: Constructor de Puentes | E123: Forestal | F123: Esvin Leonel Rivera Pineda | G123: 38-2017-031-AMSA | H123: 2014-02-17 | I123: 80.86 | J123: 31 | K123: =I123*J123 -> 2506.66 | L123: 250 | M123: =6.04*J123 -> 187.24 | N123: =SUM(K123:M123) -> 2943.9 | O123: =ROUND((K123+M123)*4.83%,2) -> 130.12 | P123: 0 | R123: =SUM(O123:Q123) -> 130.12 | S123: =+N123-R123 -> 2813.78 | T123: 3216001659
B124: 2 | C124: Peón de Campo | D124: Constructor de Puentes | E124: Forestal | F124: José Alberto Rucal | G124: 39-2017-031-AMSA | H124: 2002-01-02 | I124: 80.86 | J124: 31 | K124: 2506.66 | L124: 250 | M124: =6.04*J124 -> 187.24 | N124: 2943.9 | O124: 130.12 | P124: 0 | Q124: 0 | R124: 130.12 | S124: 2813.78 | T124: 3216001457 | V124: NACIONES UNIDAS
B125: 3 | C125: Peón de Campo | D125: Constructor de Puentes | E125: Forestal | F125: Julio Roberto Martínez Aguilar | G125: 40-2017-031-AMSA | H125: 2002-01-02 | I125: 80.86 | J125: 31 | K125: 2506.66 | L125: 250 | M125: 187.24 | N125: 2943.9 | O125: 130.12 | P125: 0 | Q125: 0 | R125: 130.12 | S125: 2813.78 | T125: 3216001695
B126: 4 | C126: Peón de Campo | D126: Constructor de Puentes | E126: Forestal | F126: Juan Emilio Cruz De León | G126: 41-2017-031-AMSA | H126: 2015-01-05 | I126: 80.86 | J126: 31 | K126: 2506.66 | L126: 250 | M126: 187.24 | N126: 2943.9 | O126: 130.12 | P126: 0 | Q126: 0 | R126: 130.12 | S126: 2813.78 | T126: 3216001920
B127: 5 | C127: Peón de Campo | D127: Constructor de Puentes | E127: Forestal | F127: Emilio Taque Carranza | G127: 42-2017-031-AMSA | H127: 2013-01-02 | I127: 80.86 | J127: 31 | K127: 2506.66 | L127: 250 | M127: 187.24 | N127: 2943.9 | O127: 130.12 | P127: 0 | Q127: 0 | R127: 130.12 | S127: 2813.78 | T127: 3216004468
B128: 6 | C128: Peón de Campo | D128: Constructor de Puentes | E128: Forestal | F128: Rigoberto de Jesús Osorio Morataya | G128: 43-2017-031-AMSA | H128: 2007-09-01 | I128: 80.86 | J128: 31 | K128: 2506.66 | L128: 250 | M128: 187.24 | N128: 2943.9 | O128: 130.12 | P128: 0 | Q128: 0 | R128: 130.12 | S128: 2813.78 | T128: 3164033390
B129: 7 | C129: Peón de Campo | D129: Constructor de Puentes | E129: Forestal | F129: Manuel de Jesús Coy Malín | G129: 44-2017-031-AMSA | H129: 2002-01-02 | I129: 80.86 | J129: 31 | K129: 2506.66 | L129: 250 | M129: 187.24 | N129: 2943.9 | O129: 130.12 | P129: 0 | Q129: 0 | R129: 130.12 | S129: 2813.78 | T129: 3216001728
B130: 8 | C130: Peón de Campo | D130: Constructor de Puentes | E130: Forestal | F130: Francisco Javier Rivera Orellana | G130: 45-2017-031-AMSA | H130: 2004-07-07 | I130: 80.86 | J130: 31 | K130: 2506.66 | L130: 250 | M130: 187.24 | N130: 2943.9 | O130: 130.12 | P130: 0 | Q130: 0 | R130: 130.12 | S130: 2813.78 | T130: 3216001916 | V130: NACIONES UNIDAS
B131: 9 | C131: Peón de Campo | D131: Constructor de Puentes | E131: Forestal | F131: Fermín Hernández Martinez | G131: 46-2017-031-AMSA | H131: 2002-02-01 | I131: 80.86 | J131: 31 | K131: 2506.66 | L131: 250 | M131: 187.24 | N131: 2943.9 | O131: 130.12 | P131: 0 | Q131: 0 | R131: 130.12 | S131: 2813.78 | T131: 4216002596 | V131: NACIONES UNIDAS
B132: 10 | C132: Peón de Campo | D132: Constructor de Puentes | E132: Forestal | F132: Víctor Manuel López Rodríguez | G132: 47-2017-031-AMSA | H132: 2005-02-01 | I132: 80.86 | J132: 31 | K132: 2506.66 | L132: 250 | M132: 187.24 | N132: 2943.9 | O132: 130.12 | P132: 0 | Q132: 0 | R132: 130.12 | S132: 2813.78 | T132: 3216001865
B133: 11 | C133: Piloto | D133: Constructor de Puentes | E133: Forestal | F133: Cosme Virgilio Morales Rodríguez | G133: 48-2017-031-AMSA | H133: 2005-01-03 | I133: 80.86 | J133: 31 | K133: 2506.66 | L133: 250 | M133: 187.24 | N133: 2943.9 | O133: 130.12 | P133: 0 | Q133: 0 | R133: 130.12 | S133: 2813.78 | T133: 3216001829
B134: 12 | C134: Peón de Campo | D134: Constructor de Puentes | E134: Forestal | F134: Carlos Alberto Morales Contreras | G134: 49-2017-031-AMSA | H134: 2005-01-03 | I134: 80.86 | J134: 31 | K134: 2506.66 | L134: 250 | M134: 187.24 | N134: 2943.9 | O134: 130.12 | P134: 0 | Q134: 0 | R134: 130.12 | S134: 2813.78 | T134: 3216001833 | V134: NACIONES UNIDAS
B135: 13 | C135: Peón de Campo | D135: Constructor de Puentes | E135: Forestal | F135: Miguel Ángel Ramos Luis | G135: 50-2017-031-AMSA | H135: 2002-02-12 | I135: 80.86 | J135: 31 | K135: 2506.66 | L135: 250 | M135: 187.24 | N135: 2943.9 | O135: 130.12 | P135: 0 | Q135: 0 | R135: 130.12 | S135: 2813.78 | T135: 3216001851 | V135: NACIONES UNIDAS
B136: 14 | C136: Peón de Campo | D136: Constructor de Puentes | E136: Forestal | F136: Felipe Santiago Carreto | G136: 51-2017-031-AMSA | H136: 2006-01-03 | I136: 80.86 | J136: 31 | K136: 2506.66 | L136: 250 | M136: 187.24 | N136: 2943.9 | O136: 130.12 | P136: 0 | Q136: 0 | R136: 130.12 | S136: 2813.78 | T136: 4216008623 | V136: NACIONES UNIDAS
B137: 15 | D137: Constructor de Puentes | E137: Forestal | F137: Custodio Quiñonez Morataya | G137: 52-2017-031-AMSA | H137: 2015-11-03 | I137: 80.86 | J137: 31 | K137: 2506.66 | L137: 250 | M137: 187.24 | N137: 2943.9 | O137: 130.12 | P137: 0 | R137: 130.12 | S137: 2813.78 | T137: 3164030412
B138: 16 | D138: Constructor de Puentes | E138: Forestal | F138: Matilde Arias Cruz | G138: 53-2017-031-AMSA | H138: 2016-01-01 | I138: 80.86 | J138: 31 | K138: 2506.66 | L138: 250 | M138: 187.24 | N138: 2943.9 | O138: 130.12 | P138: 0 | R138: 130.12 | S138: 2813.78 | T138: 3229008974
B139: 17 | D139: Constructor de Puentes | E139: Forestal | F139: José Muñoz Chávez | G139: 54-2017-031-AMSA | H139: 2016-01-01 | I139: 80.86 | J139: 31 | K139: 2506.66 | L139: 250 | M139: 187.24 | N139: 2943.9 | O139: 130.12 | P139: 0 | R139: 130.12 | S139: 2813.78 | T139: 3229011973
B140: 18 | D140: Constructor de Puentes | E140: Forestal | F140: Víctor Vicente Paredes González | G140: 55-2017-031-AMSA | H140: 2016-01-01 | I140: 80.86 | J140: 31 | K140: 2506.66 | L140: 250 | M140: 187.24 | N140: 2943.9 | O140: 130.12 | P140: 0 | R140: 130.12 | S140: 2813.78 | T140: 3287008934
B141: 19 | D141: Constructor de Puentes | E141: Forestal | F141: Antonio Coy Hernandez | G141: 56-2017-031-AMSA | H141: 2016-01-01 | I141: 80.86 | J141: 31 | K141: 2506.66 | L141: 250 | M141: 187.24 | N141: 2943.9 | O141: 130.12 | P141: 0 | R141: 130.12 | S141: 2813.78 | T141: 3287036198
B142: 20 | D142: Constructor de Puentes | E142: Forestal | F142: Vitelio Catalan Ovando | G142: 57-2017-031-AMSA | H142: 2016-01-01 | I142: 80.86 | J142: 31 | K142: 2506.66 | L142: 250 | M142: 187.24 | N142: 2943.9 | O142: 130.12 | P142: 0 | R142: 130.12 | S142: 2813.78 | T142: 3164074549
G143: Totales | K143: =SUM(K123:K142) -> 50133.2 | L143: =SUM(L123:L142) -> 5000 | M143: 3744.8 | N143: 58878 | O143: 2602.4 | P143: 0 | Q143: 0 | R143: 2602.4 | S143: 56275.6
K145: Renglón 031 | L145: Renglón 033 | M145: Renglón 033 | N145: Total Devengado Mensual | O145: Deducciones | R145: Total Deducciones | S145: Liquido
O146: 201 | P146: 211 | Q146: 120
B147: TOTAL NÓMINA | K147: Jornales | L147: Bono 66-2000 | M147: complemento específico por nivelación | O147: IGSS | P147: Retenciones Judiciales | Q147: Decreto 81-70
K148: =+K39+K54+K78+K103+K143 -> 174249.14 | L148: =+L39+L54+L78+L103+L143 -> 18000 | M148: 15714.26 | N148: 207963.4 | O148: =+O39+O54+O78+O103+O143 -> 9175.47 | P148: 800 | Q148: 0 | R148: 9975.47 | S148: 197987.93
G157: Revisó: | O157: Vo.Bo.
C158: Realizó: | E158: Yeimy Daleicy Rodriguez González | H158: Víctor Anibal López Aquino | P158: Ing. Oscar Amed Juárez Sosa
E159: Encargada de Nómina | H159: Jefe Administrativo Financiero | P159: Director Ejecutivo
E160: AMSA | H160: AMSA | P160: AMSA

Sheet SP 031A (2)
A2: AUTORIDAD PARA EL MANEJO SUSTENTABLE DE LA CUENCA Y DEL LAGO DE AMATITLÁN.
B3: PRESIDENCIA DE LA REPÚBLICA.
A5: ='031'!D7 -> SOLICITUD DE PAGO
A6: NOMINA NO. 7-2017
B8: GUATEMALA, | F8: =TODAY() -> 2017-06-05 | O8: CANTIDAD: | S8: =+'031'!S39+'031'!S54+'031'!S78+'031'!S103+'031'!#REF!+'031'!S143 -> 
B10: UNIDAD SOLICITANTE: | H10: RECURSOS HUMANOS
B12: CANTIDAD: | E12: =PesosMN(S8) -> 
B13: NOMINA: | H13: =+A6 -> NOMINA NO. 7-2017 | Q13: VENCE:
B15: CUR | D15: x | F15: CHEQUE AMSA | L15: CAJA CHICA
B17: A NOMBRE DE: | F17: AMSA
B19: OBSERVACIONES: | G19: ='031'!B3 -> NOMINA CORRESPONDIENTE AL MES DE MAYO 2017
G20: 031 "JORNALES"
A29: AUTORIDAD PARA EL MANEJO SUSTENTABLE DE LA CUENCA Y DEL LAGO DE AMATITLÁN.
B30: PRESIDENCIA DE LA REPÚBLICA.
A32: ='[2]031'!E42 -> SOLICITUD DE PAGO
A33: =+POLICIAS!B4 -> NÚMERO 8-2017
B35: GUATEMALA, | F35: =F8 -> 2017-06-05 | O35: CANTIDAD: | S35: =+POLICIAS!R17 -> 2813.78
B37: UNIDAD SOLICITANTE: | H37: RECURSOS HUMANOS
B39: CANTIDAD: | E39: =PesosMN(S35) -> -- DOS MIL OCHOCIENTOS TRECE CON 78 /100 --
B40: NOMINA: | H40: =+A33 -> NÚMERO 8-2017 | Q40: VENCE:
B42: CUR | D42: x | F42: CHEQUE AMSA | L42: CAJA CHICA
B44: A NOMBRE DE: | F44: AMSA
B46: OBSERVACIONES: | G46: =G19 -> NOMINA CORRESPONDIENTE AL MES DE MAYO 2017
G47: 031 "JORNALES" .
A54: AUTORIDAD PARA EL MANEJO SUSTENTABLE DE LA CUENCA Y DEL LAGO DE AMATITLÁN.
B55: PRESIDENCIA DE LA REPÚBLICA.
A57: ='[2]031'!E78 -> SOLICITUD DE PAGO
A58: =+'031'!#REF! -> 
B60: GUATEMALA, | F60: =F8 -> 2017-06-05 | O60: CANTIDAD: | S60: =+'031'!S78 -> 22760.24
B62: UNIDAD SOLICITANTE: | H62: RECURSOS HUMANOS
B64: CANTIDAD: | E64: =PesosMN(S60) -> -- VEINTIDOS MIL SETECIENTOS SESENTA CON 24 /100 --
B65: NOMINA: | H65: =A58 ->  | Q65: VENCE:
B67: CUR | D67: x | F67: CHEQUE AMSA | L67: CAJA CHICA
B69: A NOMBRE DE: | F69: AMSA
B71: OBSERVACIONES: | G71: =G19 -> NOMINA CORRESPONDIENTE AL MES DE MAYO 2017
G72: 031 "JORNALES" DE LA DIVISIÓN DE DESECHOS LÍQUIDOS.
A81: AUTORIDAD PARA EL MANEJO SUSTENTABLE DE LA CUENCA Y DEL LAGO DE AMATITLÁN.
B82: PRESIDENCIA DE LA REPÚBLICA.
A84: ='[2]031'!E116 -> SOLICITUD DE PAGO
A85: =+'031'!#REF! -> 
B87: GUATEMALA, | F87: =F8 -> 2017-06-05 | O87: CANTIDAD: | S87: =+'031'!S103 -> 44220.48
B89: UNIDAD SOLICITANTE: | H89: RECURSOS HUMANOS
B91: CANTIDAD: | E91: =PesosMN(S87) -> -- CUARENTA Y CUATRO MIL DOSCIENTOS VEINTE CON 48 /100 --
B92: NOMINA: | H92: =A85 ->  | Q92: VENCE:
B94: CUR | D94: x | F94: CHEQUE AMSA | L94: CAJA CHICA
B96: A NOMBRE DE: | F96: AMSA
B98: OBSERVACIONES: | G98: =G19 -> NOMINA CORRESPONDIENTE AL MES DE MAYO 2017
G99: 031 "JORNALES" DE LA DIVISIÓN DE MANTENIMIENTO Y LIMPIEZA DEL LAGO.
A109: AUTORIDAD PARA EL MANEJO SUSTENTABLE DE LA CUENCA Y DEL LAGO DE AMATITLÁN.
B110: PRESIDENCIA DE LA REPÚBLICA.
A112: ='[2]031'!E161 -> SOLICITUD DE PAGO
A113: =+'031'!#REF! -> 
B115: GUATEMALA, | F115: =F8 -> 2017-06-05 | O115: CANTIDAD: | S115: =+'031'!S143 -> 56275.6
B117: UNIDAD SOLICITANTE: | H117: RECURSOS HUMANOS
B119: CANTIDAD: | E119: =PesosMN(S115) -> -- CINCUENTA Y SEIS MIL DOSCIENTOS SETENTA Y CINCO CON 60 /100 --
B120: NOMINA No. | I120: =A113 ->  | Q120: VENCE:
B122: CUR | D122: x | F122: CHEQUE AMSA | L122: CAJA CHICA
B124: A NOMBRE DE: | F124: AMSA
B126: OBSERVACIONES: | G126: =G19 -> NOMINA CORRESPONDIENTE AL MES DE MAYO 2017
G127: 031 "JORNALES" DE LA DIVISIÓN FORESTAL.

Sheet POLICIAS
B2: AUTORIDAD PARA EL MANEJO SUSTENTABLE DE LA CUENCA Y DEL LAGO DE AMATITLÁN
B3: NOMINA CORRESPONDIENTE AL MES DE MAYO 2017
B4: NÚMERO 8-2017
B5: RENGLÓN 031 "JORNALES"
C7: SOLICITUD DE PAGO | D7: =B4 -> NÚMERO 8-2017
B10: 11130016-219-00-33-00-000-002-000-031-0115-11-0000-0000
B14: No. | C14: Titulo Jornal Diario | D14: Ubicación | E14: Empleado | F14: Contrato | G14: Fecha de Ingreso | H14: Jornal | I14: Días | J14: Renglón 031 | K14: Renglón 033 | L14: Renglón 033 | M14: Total Devengado Mensual | N14: Deducciones | Q14: Total Deducciones | R14: Liquido | S14: Número de Cuenta G&T
N15: 201 | O15: 211 | P15: 120
J16: Jornales | K16: Bono 66-2000 | L16: complemento específico por nivelación | N16: IGSS | O16: Retenciones Judiciales | P16: Decreto 81-70
B17: 1 | C17: Peon Vigilante V | D17: Acuatica | E17: José Luis Perpuac Gómez | F17: 69-2017-031-AMSA | G17: 2017-02-20 | H17: 75.64 | I17: 31 | J17: =H17*I17 -> 2344.84 | K17: 250 | L17: =11.26*I17 -> 349.06 | M17: =SUM(J17:L17) -> 2943.9 | N17: =ROUND((J17+L17)*4.83%,2) -> 130.12 | O17: 0 | P17: 0 | Q17: =SUM(N17:P17) -> 130.12 | R17: =+M17-Q17 -> 2813.78 | S17: 0430010569-2
C23: Realizó: | F23: Revisó: | N23: Vo.Bo.
D24: Yeimy Daleicy Rodriguez González | G24: Víctor Anibal López Aquino | O24: Ing. Oscar Amed Juárez Sosa
D25: Encargada de Nómina | G25: Jefe Administrativo Financiero | O25: Director Ejecutivo
D26: AMSA | G26: AMSA | O26: AMSA

Sheet SP 031A
A2: AUTORIDAD PARA EL MANEJO SUSTENTABLE DE LA CUENCA Y DEL LAGO DE AMATITLÁN.
B3: PRESIDENCIA DE LA REPÚBLICA.
A5: ='031'!D7 -> SOLICITUD DE PAGO
A6: =POLICIAS!B4 -> NÚMERO 8-2017
B8: GUATEMALA, | F8: =TODAY() -> 2017-06-05 | O8: CANTIDAD: | S8: =+POLICIAS!R17 -> 2813.78
B10: UNIDAD SOLICITANTE: | H10: RECURSOS HUMANOS
B12: CANTIDAD: | E12: =PesosMN(S8) -> -- DOS MIL OCHOCIENTOS TRECE CON 78 /100 --
B13: NOMINA: | H13: =+A6 -> NÚMERO 8-2017 | Q13: VENCE:
B15: CUR | D15: x | F15: CHEQUE AMSA | L15: CAJA CHICA
B17: A NOMBRE DE: | F17: AMSA
B19: OBSERVACIONES: | G19: ='031'!B3 -> NOMINA CORRESPONDIENTE AL MES DE MAYO 2017
G20: 031 "JORNALES"
A29: AUTORIDAD PARA EL MANEJO SUSTENTABLE DE LA CUENCA Y DEL LAGO DE AMATITLÁN.
B30: PRESIDENCIA DE LA REPÚBLICA.
A32: ='[2]031'!E42 -> SOLICITUD DE PAGO
A33: =+POLICIAS!B4 -> NÚMERO 8-2017
B35: GUATEMALA, | F35: =F8 -> 2017-06-05 | O35: CANTIDAD: | S35: =+POLICIAS!R17 -> 2813.78
B37: UNIDAD SOLICITANTE: | H37: RECURSOS HUMANOS
B39: CANTIDAD: | E39: =PesosMN(S35) -> -- DOS MIL OCHOCIENTOS TRECE CON 78 /100 --
B40: NOMINA: | H40: =+A33 -> NÚMERO 8-2017 | Q40: VENCE:
B42: CUR | D42: x | F42: CHEQUE AMSA | L42: CAJA CHICA
B44: A NOMBRE DE: | F44: AMSA
B46: OBSERVACIONES: | G46: =G19 -> NOMINA CORRESPONDIENTE AL MES DE MAYO 2017
G47: 031 "JORNALES" DE LA DIVISIÓN DE DESECHOS SÓLIDOS.
A54: AUTORIDAD PARA EL MANEJO SUSTENTABLE DE LA CUENCA Y DEL LAGO DE AMATITLÁN.
B55: PRESIDENCIA DE LA REPÚBLICA.
A57: ='[2]031'!E78 -> SOLICITUD DE PAGO
A58: =+'031'!#REF! -> 
B60: GUATEMALA, | F60: =F8 -> 2017-06-05 | O60: CANTIDAD: | S60: =+'031'!S78 -> 22760.24
B62: UNIDAD SOLICITANTE: | H62: RECURSOS HUMANOS
B64: CANTIDAD: | E64: =PesosMN(S60) -> -- VEINTIDOS MIL SETECIENTOS SESENTA CON 24 /100 --
B65: NOMINA: | H65: =A58 ->  | Q65: VENCE:
B67: CUR | D67: x | F67: CHEQUE AMSA | L67: CAJA CHICA
B69: A NOMBRE DE: | F69: AMSA
B71: OBSERVACIONES: | G71: =G19 -> NOMINA CORRESPONDIENTE AL MES DE MAYO 2017
G72: 031 "JORNALES" DE LA DIVISIÓN DE DESECHOS LÍQUIDOS.
A81: AUTORIDAD PARA EL MANEJO SUSTENTABLE DE LA CUENCA Y DEL LAGO DE AMATITLÁN.
B82: PRESIDENCIA DE LA REPÚBLICA.
A84: ='[2]031'!E116 -> SOLICITUD DE PAGO
A85: =+'031'!#REF! -> 
B87: GUATEMALA, | F87: =F8 -> 2017-06-05 | O87: CANTIDAD: | S87: =+'031'!S103 -> 44220.48
B89: UNIDAD SOLICITANTE: | H89: RECURSOS HUMANOS
B91: CANTIDAD: | E91: =PesosMN(S87) -> -- CUARENTA Y CUATRO MIL DOSCIENTOS VEINTE CON 48 /100 --
B92: NOMINA: | H92: =A85 ->  | Q92: VENCE:
B94: CUR | D94: x | F94: CHEQUE AMSA | L94: CAJA CHICA
B96: A NOMBRE DE: | F96: AMSA
B98: OBSERVACIONES: | G98: =G19 -> NOMINA CORRESPONDIENTE AL MES DE MAYO 2017
G99: 031 "JORNALES" DE LA DIVISIÓN DE MANTENIMIENTO Y LIMPIEZA DEL LAGO.
A109: AUTORIDAD PARA EL MANEJO SUSTENTABLE DE LA CUENCA Y DEL LAGO DE AMATITLÁN.
B110: PRESIDENCIA DE LA REPÚBLICA.
A112: ='[2]031'!E161 -> SOLICITUD DE PAGO
A113: =+'031'!#REF! -> 
B115: GUATEMALA, | F115: =F8 -> 2017-06-05 | O115: CANTIDAD: | S115: =+'031'!S143 -> 56275.6
B117: UNIDAD SOLICITANTE: | H117: RECURSOS HUMANOS
B119: CANTIDAD: | E119: =PesosMN(S115) -> -- CINCUENTA Y SEIS MIL DOSCIENTOS SETENTA Y CINCO CON 60 /100 --
B120: NOMINA No. | I120: =A113 ->  | Q120: VENCE:
B122: CUR | D122: x | F122: CHEQUE AMSA | L122: CAJA CHICA
B124: A NOMBRE DE: | F124: AMSA
B126: OBSERVACIONES: | G126: =G19 -> NOMINA CORRESPONDIENTE AL MES DE MAYO 2017
G127: 031 "JORNALES" DE LA DIVISIÓN FORESTAL.

Sheet B 031
A1: GOBIERNO DE LA REPÚBLICA DE GUATEMALA
A2: AUTORIDAD PARA EL MANEJO SUSTENTABLE DE LA CUENCA Y DEL LAGO DE AMATITLÁN
A5: Boleta de Liquidación Mensual Renglón 031 "Jornales" Correspondiente al mes de septiembre 2014
A6: ='031'!B4:T4 -> 
A8: Empleado: | C8: ='031'!F16 -> Gladis Mirtala Ramírez Sánchez | K8: Certificación No. | N8: ='031'!B16 -> 1 | P8: Fecha: | R8: 2014-08-31
A9: Contrato: | C9: ='031'!G16 -> 01-2017-031-AMSA | F9: Puesto Funcional: | I9: ='031'!C16 -> Encargada de Limpieza | M9: Titulo Jornal: | P9: ='031'!D16 -> Constructor de Puentes
A10: Cuenta / Banco: | D10: ='031'!T16 -> 3216012953 | F10: Banco de Desarrollo Rural, S.A. | K10: Jornal Diario: | N10: ='031'!I16 -> 80.86 | P10: Días Trabajados: | S10: ='031'!J16 -> 31
M12: Ingresos | Q12: Deducciones
B14: 031 | C14: DEVENGADO | M14: ='031'!K16 -> 2506.66
B15: 033 | C15: BONO ACUERDO GUBERNATIVO 66-2000 | M15: ='031'!L16 -> 250
B16: 201 | C16: I.G.S.S | Q16: ='031'!O16 -> 130.12
B17: 118 | C17: MONTEPÍO | Q17: 0
B18: 211 | C18: RETENCIONES JUDICIALES | Q18: ='031'!P16 -> 0
K19: Total : | M19: =SUM(M14:O18) -> 2756.66 | Q19: =SUM(Q16:S18) -> 130.12
K20: Liquido : | M20: =M19-Q19 -> 2626.54
A29: María José Ceballos López | M29: =C8 -> Gladis Mirtala Ramírez Sánchez
A30: Encargada de Nómina | M30: =P9 -> Constructor de Puentes
A31: AMSA | M31: AMSA
A40: GOBIERNO DE LA REPÚBLICA DE GUATEMALA
A41: AUTORIDAD PARA EL MANEJO SUSTENTABLE DE LA CUENCA Y DEL LAGO DE AMATITLÁN
A44: =A5 -> Boleta de Liquidación Mensual Renglón 031 "Jornales" Correspondiente al mes de septiembre 2014
A45: =A6 -> 
A47: Empleado: | C47: =C8 -> Gladis Mirtala Ramírez Sánchez | K47: Certificación No. | N47: =N8 -> 1 | P47: Fecha: | R47: =R8 -> 2014-08-31
A48: Contrato: | C48: =C9 -> 01-2017-031-AMSA | F48: Puesto Funcional: | I48: =I9 -> Encargada de Limpieza | M48: Titulo Jornal: | P48: =P9 -> Constructor de Puentes
A49: Cuenta / Banco: | D49: =D10 -> 3216012953 | F49: Banco de Desarrollo Rural, S.A. | K49: Jornal Diario: | N49: =N10 -> 80.86 | P49: Días Trabajados: | S49: =S10 -> 31
M51: Ingresos | Q51: Deducciones
B53: 031 | C53: DEVENGADO | M53: =M14 -> 2506.66
B54: 033 | C54: BONO ACUERDO GUBERNATIVO 66-2000 | M54: =M15 -> 250
B55: 201 | C55: I.G.S.S | Q55: =Q16 -> 130.12
B56: 118 | C56: MONTEPÍO | Q56: =Q17 -> 0
B57: 211 | C57: RETENCIONES JUDICIALES | Q57: =Q18 -> 0
K58: Total : | M58: =SUM(M53:O57) -> 2756.66 | Q58: =SUM(Q55:S57) -> 130.12
K59: Liquido : | M59: =M58-Q58 -> 2626.54
A68: =A29 -> María José Ceballos López | M68: =C47 -> Gladis Mirtala Ramírez Sánchez
A69: =A30 -> Encargada de Nómina | M69: =P48 -> Constructor de Puentes
A70: =A31 -> AMSA | M70: AMSA
A72: GOBIERNO DE LA REPÚBLICA DE GUATEMALA
A73: AUTORIDAD PARA EL MANEJO SUSTENTABLE DE LA CUENCA Y DEL LAGO DE AMATITLÁN
A76: =A5 -> Boleta de Liquidación Mensual Renglón 031 "Jornales" Correspondiente al mes de septiembre 2014
A77: =A6 -> 
A79: Empleado: | C79: ='031'!#REF! ->  | K79: Certificación No. | N79: =N8+1 -> 2 | P79: Fecha: | R79: =R8 -> 2014-08-31
A80: Contrato: | C80: ='031'!#REF! ->  | F80: Puesto Funcional: | I80: ='031'!#REF! ->  | M80: Titulo Jornal: | P80: ='031'!#REF! -> 
A81: Cuenta / Banco: | D81: ='031'!#REF! ->  | F81: Banco de Desarrollo Rural, S.A. | K81: Jornal Diario: | N81: ='031'!#REF! ->  | P81: Días Trabajados: | S81: ='031'!#REF! -> 
M83: Ingresos | Q83: Deducciones
B85: 031 | C85: DEVENGADO | M85: ='031'!#REF! -> 
B86: 033 | C86: BONO ACUERDO GUBERNATIVO 66-2000 | M86: ='031'!#REF! -> 
B87: 201 | C87: I.G.S.S | Q87: ='031'!#REF! -> 
B88: 118 | C88: MONTEPÍO | Q88: 0
B89: 211 | C89: RETENCIONES JUDICIALES | Q89: ='031'!#REF! -> 
K90: Total : | M90: =SUM(M85:O89) ->  | Q90: =SUM(Q87:S89) -> 
K91: Liquido : | M91: =M90-Q90 -> 
A100: María José Ceballos López | M100: =C79 -> 
A101: Encargada de Nómina | M101: =P80 -> 
A102: AMSA | M102: AMSA
A111: GOBIERNO DE LA REPÚBLICA DE GUATEMALA
A112: AUTORIDAD PARA EL MANEJO SUSTENTABLE DE LA CUENCA Y DEL LAGO DE AMATITLÁN
A115: =A76 -> Boleta de Liquidación Mensual Renglón 031 "Jornales" Correspondiente al mes de septiembre 2014
A116: =A77 -> 
A118: Empleado: | C118: =C79 ->  | K118: Certificación No. | N118: =N79 -> 2 | P118: Fecha: | R118: =R79 -> 2014-08-31
A119: Contrato: | C119: =C80 ->  | F119: Puesto Funcional: | I119: =I80 ->  | M119: Titulo Jornal: | P119: =P80 -> 
A120: Cuenta / Banco: | D120: =D81 ->  | F120: Banco de Desarrollo Rural, S.A. | K120: Jornal Diario: | N120: =N81 ->  | P120: Días Trabajados: | S120: =S81 -> 
M122: Ingresos | Q122: Deducciones
B124: 031 | C124: DEVENGADO | M124: =M85 -> 
B125: 033 | C125: BONO ACUERDO GUBERNATIVO 66-2000 | M125: =M86 -> 
B126: 201 | C126: I.G.S.S | Q126: =Q87 -> 
B127: 118 | C127: MONTEPÍO | Q127: =Q88 -> 0
B128: 211 | C128: RETENCIONES JUDICIALES | Q128: =Q89 -> 
K129: Total : | M129: =SUM(M124:O128) ->  | Q129: =SUM(Q126:S128) -> 
K130: Liquido : | M130: =M129-Q129 -> 
A139: =A100 -> María José Ceballos López | M139: =C118 -> 
A140: =A101 -> Encargada de Nómina | M140: =P119 -> 
A141: =A102 -> AMSA | M141: AMSA
A143: GOBIERNO DE LA REPÚBLICA DE GUATEMALA
A144: AUTORIDAD PARA EL MANEJO SUSTENTABLE DE LA CUENCA Y DEL LAGO DE AMATITLÁN
A147: =A76 -> Boleta de Liquidación Mensual Renglón 031 "Jornales" Correspondiente al mes de septiembre 2014
A148: =A77 -> 
A150: Empleado: | C150: ='031'!F18 -> Victorina de Jesús Peralta Peralta | K150: Certificación No. | N150: =N79+1 -> 3 | P150: Fecha: | R150: =R8 -> 2014-08-31
A151: Contrato: | C151: ='031'!G18 -> 03-2017-031-AMSA | F151: Puesto Funcional: | I151: ='031'!C18 -> Jardinero | M151: Titulo Jornal: | P151: ='031'!D18 -> Constructor de Puentes
A152: Cuenta / Banco: | D152: ='031'!T18 -> 3393002669 | F152: Banco de Desarrollo Rural, S.A. | K152: Jornal Diario: | N152: ='031'!I18 -> 80.86 | P152: Días Trabajados: | S152: ='031'!J18 -> 31
M154: Ingresos | Q154: Deducciones
B156: 031 | C156: DEVENGADO | M156: ='031'!K18 -> 2506.66
B157: 033 | C157: BONO ACUERDO GUBERNATIVO 66-2000 | M157: ='031'!L18 -> 250
B158: 201 | C158: I.G.S.S | Q158: ='031'!O18 -> 130.12
B159: 118 | C159: MONTEPÍO | Q159: 0
B160: 211 | C160: RETENCIONES JUDICIALES | Q160: ='031'!P18 -> 0
K161: Total : | M161: =SUM(M156:O160) -> 2756.66 | Q161: =SUM(Q158:S160) -> 130.12
K162: Liquido : | M162: =M161-Q161 -> 2626.54
A171: María José Ceballos López | M171: =C150 -> Victorina de Jesús Peralta Peralta
A172: Encargada de Nómina | M172: =P151 -> Constructor de Puentes
A173: AMSA | M173: AMSA
A182: GOBIERNO DE LA REPÚBLICA DE GUATEMALA
A183: AUTORIDAD PARA EL MANEJO SUSTENTABLE DE LA CUENCA Y DEL LAGO DE AMATITLÁN
A186: =A147 -> Boleta de Liquidación Mensual Renglón 031 "Jornales" Correspondiente al mes de septiembre 2014
A187: =A148 -> 
A189: Empleado: | C189: =C150 -> Victorina de Jesús Peralta Peralta | K189: Certificación No. | N189: =N150 -> 3 | P189: Fecha: | R189: =R150 -> 2014-08-31
A190: Contrato: | C190: =C151 -> 03-2017-031-AMSA | F190: Puesto Funcional: | I190: =I151 -> Jardinero | M190: Titulo Jornal: | P190: =P151 -> Constructor de Puentes
A191: Cuenta / Banco: | D191: =D152 -> 3393002669 | F191: Banco de Desarrollo Rural, S.A. | K191: Jornal Diario: | N191: =N152 -> 80.86 | P191: Días Trabajados: | S191: =S152 -> 31
M193: Ingresos | Q193: Deducciones
B195: 031 | C195: DEVENGADO | M195: =M156 -> 2506.66
B196: 033 | C196: BONO ACUERDO GUBERNATIVO 66-2000 | M196: =M157 -> 250
B197: 201 | C197: I.G.S.S | Q197: =Q158 -> 130.12
B198: 118 | C198: MONTEPÍO | Q198: =Q159 -> 0
B199: 211 | C199: RETENCIONES JUDICIALES | Q199: =Q160 -> 0
K200: Total : | M200: =SUM(M195:O199) -> 2756.66 | Q200: =SUM(Q197:S199) -> 130.12
K201: Liquido : | M201: =M200-Q200 -> 2626.54
A210: =A171 -> María José Ceballos López | M210: =C189 -> Victorina de Jesús Peralta Peralta
A211: =A172 -> Encargada de Nómina | M211: =P190 -> Constructor de Puentes
A212: =A173 -> AMSA | M212: AMSA
A214: GOBIERNO DE LA REPÚBLICA DE GUATEMALA
A215: AUTORIDAD PARA EL MANEJO SUSTENTABLE DE LA CUENCA Y DEL LAGO DE AMATITLÁN
A218: =A147 -> Boleta de Liquidación Mensual Renglón 031 "Jornales" Correspondiente al mes de septiembre 2014
A219: =A148 -> 
A221: Empleado: | C221: ='031'!#REF! ->  | K221: Certificación No. | N221: =N150+1 -> 4 | P221: Fecha: | R221: 2014-09-30
A222: Contrato: | C222: ='031'!#REF! ->  | F222: Puesto Funcional: | I222: ='031'!#REF! ->  | M222: Titulo Jornal: | P222: ='031'!#REF! -> 
A223: Cuenta / Banco: | D223: ='031'!#REF! ->  | F223: Banco de Desarrollo Rural, S.A. | K223: Jornal Diario: | N223: ='031'!#REF! ->  | P223: Días Trabajados: | S223: ='031'!#REF! -> 
M225: Ingresos | Q225: Deducciones
B227: 031 | C227: DEVENGADO | M227: ='031'!#REF! -> 
B228: 033 | C228: BONO ACUERDO GUBERNATIVO 66-2000 | M228: ='031'!#REF! -> 
B229: 201 | C229: I.G.S.S | Q229: ='031'!#REF! -> 
B230: 118 | C230: MONTEPÍO | Q230: 0
B231: 211 | C231: RETENCIONES JUDICIALES | Q231: ='031'!#REF! -> 
K232: Total : | M232: =SUM(M227:O231) ->  | Q232: =SUM(Q229:S231) -> 
K233: Liquido : | M233: =M232-Q232 -> 
A242: María José Ceballos López | M242: =C221 -> 
A243: Encargada de Nómina | M243: =P222 -> 
A244: AMSA | M244: AMSA
A253: GOBIERNO DE LA REPÚBLICA DE GUATEMALA
A254: AUTORIDAD PARA EL MANEJO SUSTENTABLE DE LA CUENCA Y DEL LAGO DE AMATITLÁN
A257: =A218 -> Boleta de Liquidación Mensual Renglón 031 "Jornales" Correspondiente al mes de septiembre 2014
A258: =A219 -> 
A260: Empleado: | C260: =C221 ->  | K260: Certificación No. | N260: =N221 -> 4 | P260: Fecha: | R260: =R221 -> 2014-09-30
A261: Contrato: | C261: =C222 ->  | F261: Puesto Funcional: | I261: =I222 ->  | M261: Titulo Jornal: | P261: =P222 -> 
A262: Cuenta / Banco: | D262: =D223 ->  | F262: Banco de Desarrollo Rural, S.A. | K262: Jornal Diario: | N262: =N223 ->  | P262: Días Trabajados: | S262: =S223 -> 
M264: Ingresos | Q264: Deducciones
B266: 031 | C266: DEVENGADO | M266: =M227 -> 
B267: 033 | C267: BONO ACUERDO GUBERNATIVO 66-2000 | M267: =M228 -> 
B268: 201 | C268: I.G.S.S | Q268: =Q229 -> 
B269: 118 | C269: MONTEPÍO | Q269: =Q230 -> 0
B270: 211 | C270: RETENCIONES JUDICIALES | Q270: =Q231 -> 
K271: Total : | M271: =SUM(M266:O270) ->  | Q271: =SUM(Q268:S270) -> 
K272: Liquido : | M272: =M271-Q271 -> 
A281: =A242 -> María José Ceballos López | M281: =C260 -> 
A282: =A243 -> Encargada de Nómina | M282: =P261 -> 
A283: =A244 -> AMSA | M283: AMSA
A285: GOBIERNO DE LA REPÚBLICA DE GUATEMALA
A286: AUTORIDAD PARA EL MANEJO SUSTENTABLE DE LA CUENCA Y DEL LAGO DE AMATITLÁN
A289: =A218 -> Boleta de Liquidación Mensual Renglón 031 "Jornales" Correspondiente al mes de septiembre 2014
A290: =A219 -> 
A292: Empleado: | C292: ='031'!F20 -> Elida Etelvina Obando Hernandez | K292: Certificación No. | N292: =N221+1 -> 5 | P292: Fecha: | R292: =R8 -> 2014-08-31
A293: Contrato: | C293: ='031'!G20 -> 05-2017-031-AMSA | F293: Puesto Funcional: | I293: ='031'!C20 -> Encargada de Limpieza | M293: Titulo Jornal: | P293: ='031'!D20 -> Constructor de Puentes
A294: Cuenta / Banco: | D294: ='031'!T20 -> 4654012114 | F294: Banco de Desarrollo Rural, S.A. | K294: Jornal Diario: | N294: ='031'!I20 -> 80.86 | P294: Días Trabajados: | S294: ='031'!J20 -> 31
M296: Ingresos | Q296: Deducciones
B298: 031 | C298: DEVENGADO | M298: ='031'!K20 -> 2506.66
B299: 033 | C299: BONO ACUERDO GUBERNATIVO 66-2000 | M299: ='031'!L20 -> 250
B300: 201 | C300: I.G.S.S | Q300: ='031'!O20 -> 130.12
B301: 118 | C301: MONTEPÍO | Q301: 0
B302: 211 | C302: RETENCIONES JUDICIALES | Q302: ='031'!P20 -> 0
K303: Total : | M303: =SUM(M298:O302) -> 2756.66 | Q303: =SUM(Q300:S302) -> 130.12
K304: Liquido : | M304: =M303-Q303 -> 2626.54
A313: María José Ceballos López | M313: =C292 -> Elida Etelvina Obando Hernandez
A314: Encargada de Nómina | M314: =P293 -> Constructor de Puentes
A315: AMSA | M315: AMSA
A324: GOBIERNO DE LA REPÚBLICA DE GUATEMALA
A325: AUTORIDAD PARA EL MANEJO SUSTENTABLE DE LA CUENCA Y DEL LAGO DE AMATITLÁN
A328: =A289 -> Boleta de Liquidación Mensual Renglón 031 "Jornales" Correspondiente al mes de septiembre 2014
A329: =A290 -> 
A331: Empleado: | C331: =C292 -> Elida Etelvina Obando Hernandez | K331: Certificación No. | N331: =N292 -> 5 | P331: Fecha: | R331: =R292 -> 2014-08-31
A332: Contrato: | C332: =C293 -> 05-2017-031-AMSA | F332: Puesto Funcional: | I332: =I293 -> Encargada de Limpieza | M332: Titulo Jornal: | P332: =P293 -> Constructor de Puentes
A333: Cuenta / Banco: | D333: =D294 -> 4654012114 | F333: Banco de Desarrollo Rural, S.A. | K333: Jornal Diario: | N333: =N294 -> 80.86 | P333: Días Trabajados: | S333: =S294 -> 31
M335: Ingresos | Q335: Deducciones
B337: 031 | C337: DEVENGADO | M337: =M298 -> 2506.66
B338: 033 | C338: BONO ACUERDO GUBERNATIVO 66-2000 | M338: =M299 -> 250
B339: 201 | C339: I.G.S.S | Q339: =Q300 -> 130.12
B340: 118 | C340: MONTEPÍO | Q340: =Q301 -> 0
B341: 211 | C341: RETENCIONES JUDICIALES | Q341: =Q302 -> 0
K342: Total : | M342: =SUM(M337:O341) -> 2756.66 | Q342: =SUM(Q339:S341) -> 130.12
K343: Liquido : | M343: =M342-Q342 -> 2626.54
A352: =A313 -> María José Ceballos López | M352: =C331 -> Elida Etelvina Obando Hernandez
A353: =A314 -> Encargada de Nómina | M353: =P332 -> Constructor de Puentes
A354: =A315 -> AMSA | M354: AMSA
A356: GOBIERNO DE LA REPÚBLICA DE GUATEMALA
A357: AUTORIDAD PARA EL MANEJO SUSTENTABLE DE LA CUENCA Y DEL LAGO DE AMATITLÁN
A360: Boleta de Liquidación Mensual Renglón 031 "Jornales" Correspondiente al mes de Agosto 2015
A361: NÚMERO 45-2015
A363: Empleado: | C363: Yomara Ninett Escobar Calderón | K363: Certificación No. | N363: 7 | P363: Fecha: | R363: 2015-08-31
A364: Contrato: | C364: 11-2014-031-AMSA | F364: Puesto Funcional: | I364: ='031'!C21 -> Encargada de Limpieza | M364: Titulo Jornal: | P364: Peón
A365: Cuenta / Banco: | D365: 3164072096 | F365: Banco de Desarrollo Rural, S.A. | K365: Jornal Diario: | N365: 74.97 | P365: Días Trabajados: | S365: ='031'!J21 -> 31
M367: Ingresos | Q367: Deducciones
B369: 031 | C369: DEVENGADO | M369: =+N365*S365 -> 2324.07
B370: 033 | C370: BONO ACUERDO GUBERNATIVO 66-2000 | M370: ='031'!L21 -> 250
B371: 201 | C371: I.G.S.S | Q371: =ROUND(M369*4.83%,2) -> 112.25
B372: 118 | C372: MONTEPÍO | Q372: 0
B373: 211 | C373: RETENCIONES JUDICIALES | Q373: ='031'!P21 -> 0
K374: Total : | M374: =SUM(M369:O373) -> 2574.07 | Q374: =SUM(Q371:S373) -> 112.25
K375: Liquido : | M375: =M374-Q374 -> 2461.82
A384: Jonnathan René Pernillo Salazar | M384: =C363 -> Yomara Ninett Escobar Calderón
A385: Encargado de Nómina | M385: =P364 -> Peón
A386: AMSA | M386: AMSA
A395: GOBIERNO DE LA REPÚBLICA DE GUATEMALA
A396: AUTORIDAD PARA EL MANEJO SUSTENTABLE DE LA CUENCA Y DEL LAGO DE AMATITLÁN
... 1676 more rows
